[Event "Titled Tuesday Blitz October 25 Late 2022"]
[White "Gogolev, Artem"]
[Black "Vovk, Orest"]
[WhiteFideId "4116615"]
[BlackFideId "14113490"]
[WhiteElo "2178"]
[BlackElo "2215"]
[Result "0-1"]
[Round "06"]
[TimeControl "180+1"]
[Date "2022.10.26"]
[WhiteClock "0:00:02"]
[BlackClock "0:00:06"]

1. d4 {[%clk 0:03:00]}  e5 {[%clk 0:02:34]} 2. dxe5 {[%clk 0:02:57]}  Nc6 {[%clk 0:02:34]} 3. Nf3 {[%clk 0:02:51]}  Qe7 {[%clk 0:02:34]} 4. c4 {[%clk 0:02:20]}  Nxe5 {[%clk 0:02:22]} 5. Nxe5 {[%clk 0:02:18]}  Qxe5 {[%clk 0:02:23]} 6. Nc3 {[%clk 0:02:18]}  Nf6 {[%clk 0:02:22]} 7. e3 {[%clk 0:02:09]}  Bc5 {[%clk 0:02:18]} 8. Be2 {[%clk 0:02:09]}  O-O {[%clk 0:02:17]} 9. O-O {[%clk 0:02:08]}  d6 {[%clk 0:02:17]} 10. Bd2 {[%clk 0:01:34]}  Bf5 {[%clk 0:02:07]} 11. Nb5 {[%clk 0:01:29]}  Bb6 {[%clk 0:02:03]} 12. Bc3 {[%clk 0:01:28]}  Qe7 {[%clk 0:02:01]} 13. Nd4 {[%clk 0:01:14]}  Bg6 {[%clk 0:01:57]} 14. b3 {[%clk 0:01:12]}  Ne4 {[%clk 0:01:54]} 15. Bb2 {[%clk 0:01:12]}  Rfe8 {[%clk 0:01:48]} 16. Rc1 {[%clk 0:01:11]}  Nxf2 {[%clk 0:01:31]} 17. Rxf2 {[%clk 0:01:07]}  Qxe3 {[%clk 0:01:31]} 18. Bf1 {[%clk 0:00:49]}  Re4 {[%clk 0:01:27]} 19. c5 {[%clk 0:00:34]}  dxc5 {[%clk 0:01:09]} 20. Nc2 {[%clk 0:00:31]}  Qg5 {[%clk 0:00:59]} 21. Bc4 {[%clk 0:00:30]}  Rd8 {[%clk 0:00:52]} 22. Qf1 {[%clk 0:00:27]}  Qe7 {[%clk 0:00:33]} 23. Kh1 {[%clk 0:00:21]}  Ba5 {[%clk 0:00:33]} 24. Re2 {[%clk 0:00:20]}  Rxe2 {[%clk 0:00:30]} 25. Bxe2 {[%clk 0:00:14]}  Rd2 {[%clk 0:00:29]} 26. Rd1 {[%clk 0:00:07]}  Rxc2 {[%clk 0:00:23]} 27. Ba3 {[%clk 0:00:07]}  h6 {[%clk 0:00:19]} 28. Bf3 {[%clk 0:00:07]}  Rxa2 {[%clk 0:00:16]} 29. Bc1 {[%clk 0:00:06]}  Rc2 {[%clk 0:00:13]} 30. Bf4 {[%clk 0:00:05]}  c6 {[%clk 0:00:12]} 31. h3 {[%clk 0:00:05]}  Bc7 {[%clk 0:00:11]} 32. Bg4 {[%clk 0:00:04]}  Bxf4 {[%clk 0:00:10]} 33. Qxf4 {[%clk 0:00:05]}  Rc3 {[%clk 0:00:07]} 34. Bf5 {[%clk 0:00:05]}  Bxf5 {[%clk 0:00:05]} 35. Qxf5 {[%clk 0:00:06]}  Re3 {[%clk 0:00:04]} 36. Rd7 {[%clk 0:00:05]}  Re1+ {[%clk 0:00:04]} 37. Kh2 {[%clk 0:00:06]}  Qe5+ {[%clk 0:00:04]} 38. Qxe5 {[%clk 0:00:06]}  Rxe5 {[%clk 0:00:05]} 39. Rxb7 {[%clk 0:00:07]}  c4 {[%clk 0:00:04]} 40. bxc4 {[%clk 0:00:07]}  Rc5 {[%clk 0:00:04]} 41. Rxa7 {[%clk 0:00:07]}  Rxc4 {[%clk 0:00:04]} 42. Rc7 {[%clk 0:00:06]}  g5 {[%clk 0:00:04]} 43. g4 {[%clk 0:00:06]}  Kg7 {[%clk 0:00:04]} 44. Kg3 {[%clk 0:00:06]}  Rc3+ {[%clk 0:00:04]} 45. Kg2 {[%clk 0:00:06]}  Kg6 {[%clk 0:00:04]} 46. Rd7 {[%clk 0:00:04]}  f6 {[%clk 0:00:04]} 47. Rc7 {[%clk 0:00:04]}  h5 {[%clk 0:00:04]} 48. Rd7 {[%clk 0:00:03]}  h4 {[%clk 0:00:03]} 49. Re7 {[%clk 0:00:03]}  c5 {[%clk 0:00:03]} 50. Rc7 {[%clk 0:00:03]}  c4 {[%clk 0:00:04]} 51. Kh2 {[%clk 0:00:03]}  Rc2+ {[%clk 0:00:04]} 52. Kg1 {[%clk 0:00:03]}  c3 {[%clk 0:00:04]} 53. Kh1 {[%clk 0:00:04]}  f5 {[%clk 0:00:03]} 54. Rc6+ {[%clk 0:00:03]}  Kf7 {[%clk 0:00:03]} 55. gxf5 {[%clk 0:00:04]}  Ke7 {[%clk 0:00:04]} 56. f6+ {[%clk 0:00:04]}  Kf7 {[%clk 0:00:04]} 57. Kg1 {[%clk 0:00:05]}  Kg6 {[%clk 0:00:05]} 58. Kh1 {[%clk 0:00:05]}  Rc1+ {[%clk 0:00:04]} 59. Kg2 {[%clk 0:00:05]}  Rc2+ {[%clk 0:00:04]} 60. Kh1 {[%clk 0:00:05]}  Rf2 {[%clk 0:00:04]} 61. Kg1 {[%clk 0:00:05]}  Rxf6 {[%clk 0:00:05]} 62. Rxc3 {[%clk 0:00:05]}  Rf4 {[%clk 0:00:05]} 63. Kg2 {[%clk 0:00:06]}  Rf6 {[%clk 0:00:05]} 64. Rd3 {[%clk 0:00:06]}  Ra6 {[%clk 0:00:05]} 65. Rd2 {[%clk 0:00:06]}  Ra4 {[%clk 0:00:05]} 66. Rc2 {[%clk 0:00:07]}  Kf5 {[%clk 0:00:05]} 67. Rc5+ {[%clk 0:00:07]}  Kf4 {[%clk 0:00:06]} 68. Rc2 {[%clk 0:00:07]}  Ra3 {[%clk 0:00:04]} 69. Rf2+ {[%clk 0:00:07]}  Ke4 {[%clk 0:00:04]} 70. Rb2 {[%clk 0:00:08]}  Rd3 {[%clk 0:00:03]} 71. Rb4+ {[%clk 0:00:08]}  Ke3 {[%clk 0:00:03]} 72. Rb5 {[%clk 0:00:06]}  Rd2+ {[%clk 0:00:03]} 73. Kg1 {[%clk 0:00:06]}  Kf4 {[%clk 0:00:03]} 74. Rb3 {[%clk 0:00:04]}  Re2 {[%clk 0:00:02]} 75. Rb4+ {[%clk 0:00:01]}  Kf3 {[%clk 0:00:01]} 76. Rb3+ {[%clk 0:00:01]}  Re3 {[%clk 0:00:01]} 77. Rb2 {[%clk 0:00:01]}  Re1+ {[%clk 0:00:01]} 78. Kh2 {[%clk 0:00:01]}  Re2+ {[%clk 0:00:02]} 79. Rxe2 {[%clk 0:00:01]}  Kxe2 {[%clk 0:00:03]} 80. Kg2 {[%clk 0:00:01]}  Ke3 {[%clk 0:00:04]} 81. Kg1 {[%clk 0:00:02]}  Kf3 {[%clk 0:00:05]} 82. Kh2 {[%clk 0:00:02]}  Kf2 {[%clk 0:00:05]} 83. Kh1 {[%clk 0:00:02]}  Kg3 {[%clk 0:00:06]} 0-1


[Site "https://www.chess.com"]

[Event "Titled Tuesday Blitz October 25 Late 2022"]
[White "Gonzalez, Francisco Silva"]
[Black "Janaszak, Dawid"]
[WhiteFideId "1512285"]
[BlackFideId "1119206"]
[WhiteElo "2159"]
[BlackElo "2226"]
[Result "0-1"]
[Round "06"]
[TimeControl "180+1"]
[Date "2022.10.26"]
[WhiteClock "0:00:19"]
[BlackClock "0:00:03"]

1. d4 {[%clk 0:03:00]}  Nf6 {[%clk 0:02:59]} 2. c4 {[%clk 0:03:00]}  g6 {[%clk 0:02:58]} 3. Nc3 {[%clk 0:03:00]}  Bg7 {[%clk 0:02:58]} 4. e4 {[%clk 0:03:00]}  d6 {[%clk 0:02:58]} 5. f3 {[%clk 0:03:00]}  a6 {[%clk 0:02:57]} 6. Be3 {[%clk 0:03:00]}  Nc6 {[%clk 0:02:53]} 7. Nge2 {[%clk 0:02:59]}  O-O {[%clk 0:02:46]} 8. Qd2 {[%clk 0:02:58]}  Na5 {[%clk 0:02:42]} 9. b3 {[%clk 0:02:52]}  h5 {[%clk 0:02:33]} 10. Rd1 {[%clk 0:02:45]}  b5 {[%clk 0:02:20]} 11. cxb5 {[%clk 0:02:45]}  axb5 {[%clk 0:02:20]} 12. Nxb5 {[%clk 0:02:45]}  c6 {[%clk 0:02:19]} 13. Nbc3 {[%clk 0:02:44]}  Qc7 {[%clk 0:02:11]} 14. Nc1 {[%clk 0:02:41]}  e5 {[%clk 0:02:03]} 15. dxe5 {[%clk 0:02:38]}  dxe5 {[%clk 0:02:02]} 16. Be2 {[%clk 0:02:33]}  h4 {[%clk 0:02:02]} 17. O-O {[%clk 0:02:31]}  Nh5 {[%clk 0:02:01]} 18. Qd6 {[%clk 0:02:28]}  Qb7 {[%clk 0:02:00]} 19. Na4 {[%clk 0:02:20]}  Nf4 {[%clk 0:01:57]} 20. Nc5 {[%clk 0:02:01]}  Qa7 {[%clk 0:01:48]} 21. Bf2 {[%clk 0:01:55]}  Nb7 {[%clk 0:00:51]} 22. Nxb7 {[%clk 0:01:46]}  Qxb7 {[%clk 0:00:50]} 23. Bxh4 {[%clk 0:01:25]}  Be6 {[%clk 0:00:43]} 24. Bc4 {[%clk 0:01:12]}  Rfe8 {[%clk 0:00:31]} 25. Bxe6 {[%clk 0:01:09]}  Rxe6 {[%clk 0:00:32]} 26. Qd2 {[%clk 0:01:03]}  Bh6 {[%clk 0:00:27]} 27. Qc2 {[%clk 0:01:03]}  Rae8 {[%clk 0:00:18]} 28. Kh1 {[%clk 0:01:01]}  g5 {[%clk 0:00:16]} 29. Bf2 {[%clk 0:01:00]}  Rg6 {[%clk 0:00:15]} 30. g4 {[%clk 0:00:59]}  Bf8 {[%clk 0:00:14]} 31. Nd3 {[%clk 0:00:56]}  Rh6 {[%clk 0:00:13]} 32. Nc5 {[%clk 0:00:48]}  Qe7 {[%clk 0:00:13]} 33. Nd3 {[%clk 0:00:46]}  Qf6 {[%clk 0:00:12]} 34. Bg3 {[%clk 0:00:46]}  Qh8 {[%clk 0:00:10]} 35. Nf2 {[%clk 0:00:41]}  Bb4 {[%clk 0:00:07]} 36. Rd7 {[%clk 0:00:40]}  Rf8 {[%clk 0:00:07]} 37. Qc4 {[%clk 0:00:39]}  Ba3 {[%clk 0:00:05]} 38. Rfd1 {[%clk 0:00:32]}  Qf6 {[%clk 0:00:05]} 39. Nd3 {[%clk 0:00:19]}  Ne2 {[%clk 0:00:04]} 40. Nxe5 {[%clk 0:00:19]}  Nxg3+ {[%clk 0:00:03]} 41. Kg2 {[%clk 0:00:19]}  Qxe5 {[%clk 0:00:03]} 42. hxg3 {[%clk 0:00:19]}  Qh8 {[%clk 0:00:03]} 43. Rg1 {[%clk 0:00:18]}  Rh2+ {[%clk 0:00:03]} 44. Kf1 {[%clk 0:00:19]}  Qa1+ {[%clk 0:00:03]} 0-1


[Site "https://www.chess.com"]

[Event "Titled Tuesday Blitz October 25 Late 2022"]
[White "Goryachkina, Aleksandra"]
[Black "Potapova, Margarita"]
[WhiteFideId "4147103"]
[BlackFideId "14126869"]
[WhiteElo "2484"]
[BlackElo "2150"]
[Result "1-0"]
[Round "06"]
[TimeControl "180+1"]
[Date "2022.10.26"]
[WhiteClock "0:00:49"]
[BlackClock "0:00:03"]

1. e4 {[%clk 0:02:59]}  e5 {[%clk 0:02:59]} 2. Nf3 {[%clk 0:02:59]}  Nc6 {[%clk 0:02:59]} 3. d4 {[%clk 0:03:00]}  exd4 {[%clk 0:02:59]} 4. Nxd4 {[%clk 0:03:00]}  Nf6 {[%clk 0:02:58]} 5. Nxc6 {[%clk 0:03:00]}  bxc6 {[%clk 0:02:57]} 6. Bd3 {[%clk 0:03:00]}  d5 {[%clk 0:02:56]} 7. exd5 {[%clk 0:03:00]}  cxd5 {[%clk 0:02:53]} 8. O-O {[%clk 0:03:00]}  Be7 {[%clk 0:02:51]} 9. c4 {[%clk 0:03:00]}  O-O {[%clk 0:02:51]} 10. Nc3 {[%clk 0:02:59]}  d4 {[%clk 0:02:45]} 11. Ne4 {[%clk 0:02:58]}  Rb8 {[%clk 0:02:40]} 12. b3 {[%clk 0:02:38]}  Nxe4 {[%clk 0:02:36]} 13. Bxe4 {[%clk 0:02:37]}  c5 {[%clk 0:02:35]} 14. Qh5 {[%clk 0:02:14]}  g6 {[%clk 0:02:34]} 15. Qf3 {[%clk 0:02:14]}  Bg5 {[%clk 0:02:27]} 16. h3 {[%clk 0:01:56]}  Bxc1 {[%clk 0:02:11]} 17. Raxc1 {[%clk 0:01:55]}  Kg7 {[%clk 0:02:11]} 18. Rfe1 {[%clk 0:01:50]}  Be6 {[%clk 0:02:06]} 19. Re2 {[%clk 0:01:43]}  Qf6 {[%clk 0:02:03]} 20. Qg3 {[%clk 0:01:41]}  Qd8 {[%clk 0:01:36]} 21. Rce1 {[%clk 0:01:39]}  Qb6 {[%clk 0:01:34]} 22. h4 {[%clk 0:01:35]}  Rbd8 {[%clk 0:01:22]} 23. Bd3 {[%clk 0:01:32]}  Qd6 {[%clk 0:01:20]} 24. Re5 {[%clk 0:01:31]}  Bd7 {[%clk 0:00:55]} 25. h5 {[%clk 0:01:26]}  Rde8 {[%clk 0:00:52]} 26. h6+ {[%clk 0:01:08]}  Kxh6 {[%clk 0:00:20]} 27. Rh5+ {[%clk 0:01:05]}  Kxh5 {[%clk 0:00:18]} 28. Qxd6 {[%clk 0:01:05]}  Rxe1+ {[%clk 0:00:18]} 29. Kh2 {[%clk 0:01:05]}  Rd8 {[%clk 0:00:09]} 30. Qxc5+ {[%clk 0:01:04]}  Kh6 {[%clk 0:00:08]} 31. Qxd4 {[%clk 0:01:01]}  Ree8 {[%clk 0:00:08]} 32. Qxa7 {[%clk 0:00:52]}  Be6 {[%clk 0:00:06]} 33. Be4 {[%clk 0:00:52]}  Bxc4 {[%clk 0:00:03]} 34. Qe3+ {[%clk 0:00:49]} 1-0


[Site "https://www.chess.com"]

[Event "Titled Tuesday Blitz October 25 Late 2022"]
[White "Graif, William"]
[Black "Javakhadze, Zurab"]
[WhiteFideId "2609835"]
[BlackFideId "13603647"]
[WhiteElo "2205"]
[BlackElo "2381"]
[Result "0-1"]
[Round "06"]
[TimeControl "180+1"]
[Date "2022.10.26"]
[WhiteClock "0:00:02"]
[BlackClock "0:00:20"]

1. d4 {[%clk 0:03:00]}  Nf6 {[%clk 0:02:34]} 2. Nc3 {[%clk 0:03:00]}  d5 {[%clk 0:02:27]} 3. e4 {[%clk 0:03:00]}  Nxe4 {[%clk 0:02:18]} 4. Nxe4 {[%clk 0:02:58]}  dxe4 {[%clk 0:02:19]} 5. Be3 {[%clk 0:02:58]}  g6 {[%clk 0:02:14]} 6. f3 {[%clk 0:02:51]}  exf3 {[%clk 0:02:13]} 7. Nxf3 {[%clk 0:02:52]}  Bg7 {[%clk 0:02:13]} 8. Qd2 {[%clk 0:02:44]}  c5 {[%clk 0:02:11]} 9. O-O-O {[%clk 0:02:33]}  cxd4 {[%clk 0:02:06]} 10. Bxd4 {[%clk 0:02:24]}  O-O {[%clk 0:02:01]} 11. Qg5 {[%clk 0:01:49]}  Qc7 {[%clk 0:01:47]} 12. Bxg7 {[%clk 0:01:39]}  Kxg7 {[%clk 0:01:46]} 13. h4 {[%clk 0:01:31]}  f6 {[%clk 0:01:40]} 14. Qe3 {[%clk 0:01:24]}  Bg4 {[%clk 0:01:38]} 15. h5 {[%clk 0:01:11]}  gxh5 {[%clk 0:01:36]} 16. Be2 {[%clk 0:01:02]}  Nc6 {[%clk 0:01:33]} 17. Nd4 {[%clk 0:00:35]}  Qe5 {[%clk 0:01:30]} 18. Qxe5 {[%clk 0:00:20]}  fxe5 {[%clk 0:01:22]} 19. Nxc6 {[%clk 0:00:18]}  Bxe2 {[%clk 0:01:12]} 20. Rde1 {[%clk 0:00:16]}  bxc6 {[%clk 0:01:13]} 21. Rxe2 {[%clk 0:00:17]}  Rf5 {[%clk 0:01:13]} 22. Rhe1 {[%clk 0:00:13]}  Kf6 {[%clk 0:01:13]} 23. Rd1 {[%clk 0:00:12]}  Ke6 {[%clk 0:01:11]} 24. Rd3 {[%clk 0:00:10]}  Rc8 {[%clk 0:01:00]} 25. Ra3 {[%clk 0:00:09]}  Rf1+ {[%clk 0:00:49]} 26. Kd2 {[%clk 0:00:09]}  Rc7 {[%clk 0:00:47]} 27. Ra5 {[%clk 0:00:06]}  Rf5 {[%clk 0:00:34]} 28. Kc3 {[%clk 0:00:07]}  h4 {[%clk 0:00:29]} 29. Ra4 {[%clk 0:00:05]}  h3 {[%clk 0:00:29]} 30. gxh3 {[%clk 0:00:04]}  Rf3+ {[%clk 0:00:29]} 31. Kd2 {[%clk 0:00:03]}  Rd7+ {[%clk 0:00:28]} 32. Ke1 {[%clk 0:00:02]}  Rxh3 {[%clk 0:00:28]} 33. Ra5 {[%clk 0:00:02]}  Rh5 {[%clk 0:00:23]} 34. Ra6 {[%clk 0:00:02]}  Rc7 {[%clk 0:00:20]} 0-1


[Site "https://www.chess.com"]

[Event "Titled Tuesday Blitz October 25 Late 2022"]
[White "Gritsenko, Nikolai"]
[Black "Petrovic, Aleksa"]
[WhiteFideId "14112493"]
[BlackFideId "967629"]
[WhiteElo "2389"]
[BlackElo "2242"]
[Result "1-0"]
[Round "06"]
[TimeControl "180+1"]
[Date "2022.10.26"]
[WhiteClock "0:00:03"]
[BlackClock "0:00:04"]

1. e4 {[%clk 0:03:00]}  c6 {[%clk 0:02:57]} 2. Nf3 {[%clk 0:02:59]}  d5 {[%clk 0:02:58]} 3. Nc3 {[%clk 0:03:00]}  Nf6 {[%clk 0:02:58]} 4. e5 {[%clk 0:02:59]}  Ne4 {[%clk 0:02:58]} 5. Ne2 {[%clk 0:02:58]}  Qb6 {[%clk 0:02:45]} 6. d4 {[%clk 0:02:57]}  h6 {[%clk 0:02:39]} 7. Ng3 {[%clk 0:02:53]}  Bg4 {[%clk 0:02:33]} 8. c3 {[%clk 0:02:47]}  e6 {[%clk 0:02:29]} 9. Bd3 {[%clk 0:02:45]}  Nxg3 {[%clk 0:02:27]} 10. hxg3 {[%clk 0:02:45]}  c5 {[%clk 0:02:28]} 11. Qa4+ {[%clk 0:02:27]}  Nc6 {[%clk 0:02:25]} 12. dxc5 {[%clk 0:02:25]}  Bxc5 {[%clk 0:02:24]} 13. Qxg4 {[%clk 0:02:25]}  Bxf2+ {[%clk 0:02:14]} 14. Ke2 {[%clk 0:02:23]}  O-O-O {[%clk 0:02:12]} 15. Rf1 {[%clk 0:02:01]}  Bc5 {[%clk 0:02:08]} 16. b4 {[%clk 0:01:55]}  Be7 {[%clk 0:02:02]} 17. Qxg7 {[%clk 0:01:40]}  Rhg8 {[%clk 0:02:01]} 18. Qxf7 {[%clk 0:01:38]}  Rxg3 {[%clk 0:02:00]} 19. Qxe6+ {[%clk 0:01:38]}  Kb8 {[%clk 0:01:57]} 20. Be3 {[%clk 0:01:10]}  d4 {[%clk 0:01:31]} 21. Bf2 {[%clk 0:00:47]}  Rxg2 {[%clk 0:01:26]} 22. b5 {[%clk 0:00:44]}  dxc3 {[%clk 0:01:05]} 23. bxc6 {[%clk 0:00:26]}  Qb2+ {[%clk 0:01:03]} 24. Ke3 {[%clk 0:00:26]}  Bc5+ {[%clk 0:00:59]} 25. Ke4 {[%clk 0:00:25]}  Qb4+ {[%clk 0:00:59]} 26. Bc4 {[%clk 0:00:16]}  Rg4+ {[%clk 0:00:42]} 27. Qxg4 {[%clk 0:00:13]}  Qxc4+ {[%clk 0:00:41]} 28. Bd4 {[%clk 0:00:11]}  Bxd4 {[%clk 0:00:36]} 29. c7+ {[%clk 0:00:11]}  Kxc7 {[%clk 0:00:31]} 30. Qg7+ {[%clk 0:00:11]}  Kb8 {[%clk 0:00:30]} 31. Nxd4 {[%clk 0:00:10]}  Qxd4+ {[%clk 0:00:30]} 32. Kf5 {[%clk 0:00:10]}  c2 {[%clk 0:00:27]} 33. Rac1 {[%clk 0:00:09]}  Qd3+ {[%clk 0:00:26]} 34. Kf6 {[%clk 0:00:09]}  Rc8 {[%clk 0:00:19]} 35. Qe7 {[%clk 0:00:08]}  Rc6+ {[%clk 0:00:15]} 36. e6 {[%clk 0:00:08]}  Qd4+ {[%clk 0:00:13]} 37. Kg6 {[%clk 0:00:09]}  Qg4+ {[%clk 0:00:12]} 38. Kh7 {[%clk 0:00:07]}  Qe4+ {[%clk 0:00:11]} 39. Kh8 {[%clk 0:00:06]}  Rc8+ {[%clk 0:00:10]} 40. Rf8 {[%clk 0:00:05]}  Qe5+ {[%clk 0:00:10]} 41. Kh7 {[%clk 0:00:05]}  Qe4+ {[%clk 0:00:08]} 42. Kg7 {[%clk 0:00:05]}  Qe5+ {[%clk 0:00:07]} 43. Qf6 {[%clk 0:00:06]}  Qg3+ {[%clk 0:00:06]} 44. Kh7 {[%clk 0:00:05]}  Qd3+ {[%clk 0:00:05]} 45. Kh8 {[%clk 0:00:05]}  Qd2 {[%clk 0:00:04]} 46. Rxc8+ {[%clk 0:00:04]}  Kxc8 {[%clk 0:00:05]} 47. e7 {[%clk 0:00:04]}  Qxc1 {[%clk 0:00:03]} 48. e8=Q+ {[%clk 0:00:03]}  Kc7 {[%clk 0:00:04]} 49. Qed8# {[%clk 0:00:03]} 1-0


[Site "https://www.chess.com"]

[Event "Titled Tuesday Blitz October 25 Late 2022"]
[White "Gunduz, Umut Erdem"]
[Black "Mickiewicz, Piotr"]
[WhiteFideId "6381383"]
[BlackFideId "1114891"]
[WhiteElo "2182"]
[BlackElo "2246"]
[Result "1-0"]
[Round "06"]
[TimeControl "180+1"]
[Date "2022.10.26"]
[WhiteClock "0:00:54"]
[BlackClock "0:00:11"]

1. e4 {[%clk 0:03:00]}  c5 {[%clk 0:02:58]} 2. Nf3 {[%clk 0:03:01]}  e6 {[%clk 0:02:57]} 3. d4 {[%clk 0:03:01]}  cxd4 {[%clk 0:02:57]} 4. Nxd4 {[%clk 0:03:02]}  Nc6 {[%clk 0:02:57]} 5. Nc3 {[%clk 0:03:01]}  a6 {[%clk 0:02:57]} 6. g3 {[%clk 0:02:59]}  h5 {[%clk 0:02:56]} 7. h3 {[%clk 0:02:56]}  Nf6 {[%clk 0:02:46]} 8. Bg2 {[%clk 0:02:56]}  Qc7 {[%clk 0:02:43]} 9. O-O {[%clk 0:02:56]}  Nxd4 {[%clk 0:02:39]} 10. Qxd4 {[%clk 0:02:56]}  Bc5 {[%clk 0:02:38]} 11. Bf4 {[%clk 0:02:57]}  d6 {[%clk 0:02:08]} 12. Qd2 {[%clk 0:02:49]}  h4 {[%clk 0:02:02]} 13. g4 {[%clk 0:02:45]}  e5 {[%clk 0:01:48]} 14. Bg5 {[%clk 0:02:43]}  Be6 {[%clk 0:01:46]} 15. Rad1 {[%clk 0:02:40]}  b5 {[%clk 0:01:44]} 16. a3 {[%clk 0:02:36]}  Rc8 {[%clk 0:01:36]} 17. Kh1 {[%clk 0:02:31]}  Nd7 {[%clk 0:01:18]} 18. Be3 {[%clk 0:02:28]}  Ke7 {[%clk 0:01:05]} 19. f4 {[%clk 0:02:10]}  Bxe3 {[%clk 0:01:01]} 20. Qxe3 {[%clk 0:02:09]}  Qc5 {[%clk 0:00:59]} 21. Qxc5 {[%clk 0:02:03]}  Nxc5 {[%clk 0:00:59]} 22. f5 {[%clk 0:02:03]}  Bc4 {[%clk 0:00:58]} 23. Rf2 {[%clk 0:02:02]}  f6 {[%clk 0:00:58]} 24. Rfd2 {[%clk 0:01:58]}  Rhd8 {[%clk 0:00:56]} 25. Kg1 {[%clk 0:01:57]}  Bf7 {[%clk 0:00:54]} 26. Kf2 {[%clk 0:01:57]}  Nb7 {[%clk 0:00:49]} 27. Ke3 {[%clk 0:01:54]}  Rc5 {[%clk 0:00:48]} 28. Ne2 {[%clk 0:01:48]}  Rdc8 {[%clk 0:00:47]} 29. c3 {[%clk 0:01:48]}  Na5 {[%clk 0:00:45]} 30. Nc1 {[%clk 0:01:47]}  R5c6 {[%clk 0:00:44]} 31. Bf1 {[%clk 0:01:45]}  Bc4 {[%clk 0:00:38]} 32. Nd3 {[%clk 0:01:37]}  Nb3 {[%clk 0:00:34]} 33. Rg2 {[%clk 0:01:34]}  a5 {[%clk 0:00:34]} 34. g5 {[%clk 0:01:33]}  Bf7 {[%clk 0:00:29]} 35. Be2 {[%clk 0:01:19]}  fxg5 {[%clk 0:00:25]} 36. Rxg5 {[%clk 0:01:18]}  Kf6 {[%clk 0:00:25]} 37. Rdg1 {[%clk 0:01:16]}  Rg8 {[%clk 0:00:25]} 38. Nf2 {[%clk 0:01:11]}  b4 {[%clk 0:00:23]} 39. axb4 {[%clk 0:01:09]}  axb4 {[%clk 0:00:23]} 40. Ng4+ {[%clk 0:01:05]}  Ke7 {[%clk 0:00:22]} 41. Rxg7 {[%clk 0:01:02]}  Rxg7 {[%clk 0:00:22]} 42. f6+ {[%clk 0:01:02]}  Kf8 {[%clk 0:00:23]} 43. fxg7+ {[%clk 0:01:03]}  Ke7 {[%clk 0:00:13]} 44. Nh6 {[%clk 0:01:02]}  Be6 {[%clk 0:00:13]} 45. Rg6 {[%clk 0:01:00]}  Rc8 {[%clk 0:00:12]} 46. Rxe6+ {[%clk 0:01:01]}  Kxe6 {[%clk 0:00:12]} 47. Bg4+ {[%clk 0:01:02]}  Kf6 {[%clk 0:00:11]} 48. Bxc8 {[%clk 0:01:00]}  Kxg7 {[%clk 0:00:11]} 49. Nf5+ {[%clk 0:00:57]}  Kf6 {[%clk 0:00:11]} 50. Nxh4 {[%clk 0:00:56]}  bxc3 {[%clk 0:00:11]} 51. bxc3 {[%clk 0:00:57]}  Na5 {[%clk 0:00:11]} 52. Nf3 {[%clk 0:00:54]} 1-0


[Site "https://www.chess.com"]

[Event "Titled Tuesday Blitz October 25 Late 2022"]
[White "Guz, Ari"]
[Black "Goncalves, Davi Sulzbacher"]
[WhiteFideId "2825759"]
[BlackFideId "2154510"]
[WhiteElo "2205"]
[BlackElo "2182"]
[Result "0-1"]
[Round "06"]
[TimeControl "180+1"]
[Date "2022.10.26"]
[WhiteClock "0:01:22"]
[BlackClock "0:00:14"]

1. e4 {[%clk 0:03:00]}  c6 {[%clk 0:02:57]} 2. Nf3 {[%clk 0:02:59]}  d6 {[%clk 0:02:56]} 3. d4 {[%clk 0:02:59]}  Nd7 {[%clk 0:02:56]} 4. Bc4 {[%clk 0:02:56]}  Ngf6 {[%clk 0:02:52]} 5. e5 {[%clk 0:02:53]}  Nd5 {[%clk 0:02:51]} 6. e6 {[%clk 0:02:50]}  fxe6 {[%clk 0:02:50]} 7. O-O {[%clk 0:02:50]}  g6 {[%clk 0:02:45]} 8. Ng5 {[%clk 0:02:49]}  N7b6 {[%clk 0:02:41]} 9. Bd3 {[%clk 0:02:49]}  Bg7 {[%clk 0:02:04]} 10. Nxh7 {[%clk 0:02:43]}  Kd7 {[%clk 0:01:58]} 11. Ng5 {[%clk 0:02:43]}  Qg8 {[%clk 0:01:54]} 12. Re1 {[%clk 0:02:41]}  Bxd4 {[%clk 0:01:34]} 13. c4 {[%clk 0:02:13]}  Nf6 {[%clk 0:00:53]} 14. c5 {[%clk 0:01:47]}  Nbd5 {[%clk 0:00:17]} 15. Nxe6 {[%clk 0:01:46]}  Be5 {[%clk 0:00:16]} 16. cxd6 {[%clk 0:01:44]}  Qxe6 {[%clk 0:00:15]} 17. f4 {[%clk 0:01:37]}  Bd4+ {[%clk 0:00:15]} 18. Kh1 {[%clk 0:01:35]}  Ng4 {[%clk 0:00:14]} 19. h3 {[%clk 0:01:23]}  Nf2+ {[%clk 0:00:14]} 20. Kh2 {[%clk 0:01:23]}  Rxh3+ {[%clk 0:00:14]} 21. Kg1 {[%clk 0:01:22]}  Rh1# {[%clk 0:00:14]} 0-1


[Site "https://www.chess.com"]

[Event "Titled Tuesday Blitz October 25 Late 2022"]
[White "Halak, Miklos"]
[Black "Phillips, Rene"]
[WhiteFideId "726400"]
[BlackFideId "2056275"]
[WhiteElo "2197"]
[BlackElo "2026"]
[Result "0-1"]
[Round "06"]
[TimeControl "180+1"]
[Date "2022.10.26"]
[WhiteClock "0:00:16"]
[BlackClock "0:00:55"]

1. d4 {[%clk 0:03:00]}  Nc6 {[%clk 0:02:59]} 2. d5 {[%clk 0:03:00]}  Ne5 {[%clk 0:02:57]} 3. e4 {[%clk 0:03:00]}  e6 {[%clk 0:02:57]} 4. dxe6 {[%clk 0:03:00]}  dxe6 {[%clk 0:02:55]} 5. Qxd8+ {[%clk 0:02:59]}  Kxd8 {[%clk 0:02:56]} 6. f4 {[%clk 0:02:59]}  Nc6 {[%clk 0:02:52]} 7. Nf3 {[%clk 0:02:58]}  Bc5 {[%clk 0:02:52]} 8. c3 {[%clk 0:02:50]}  Nge7 {[%clk 0:02:50]} 9. Ng5 {[%clk 0:02:49]}  Ke8 {[%clk 0:02:48]} 10. Bb5 {[%clk 0:02:47]}  h6 {[%clk 0:02:47]} 11. Nf3 {[%clk 0:02:47]}  Bd7 {[%clk 0:02:47]} 12. b4 {[%clk 0:02:44]}  Bb6 {[%clk 0:02:45]} 13. Na3 {[%clk 0:02:44]}  a6 {[%clk 0:02:45]} 14. Ba4 {[%clk 0:02:43]}  Rd8 {[%clk 0:02:40]} 15. Nc4 {[%clk 0:02:41]}  Ba7 {[%clk 0:02:40]} 16. Bb3 {[%clk 0:02:41]}  b5 {[%clk 0:02:37]} 17. Nce5 {[%clk 0:02:41]}  Nxe5 {[%clk 0:02:35]} 18. Nxe5 {[%clk 0:02:42]}  Nc6 {[%clk 0:02:34]} 19. Nf3 {[%clk 0:02:38]}  Ke7 {[%clk 0:02:32]} 20. Ke2 {[%clk 0:02:34]}  Rhe8 {[%clk 0:02:32]} 21. a3 {[%clk 0:02:30]}  Kf8 {[%clk 0:02:33]} 22. Rf1 {[%clk 0:02:27]}  Kg8 {[%clk 0:02:32]} 23. Be3 {[%clk 0:02:25]}  Bxe3 {[%clk 0:02:30]} 24. Kxe3 {[%clk 0:02:26]}  Ne7 {[%clk 0:02:25]} 25. g4 {[%clk 0:02:20]}  Bc6 {[%clk 0:02:23]} 26. h4 {[%clk 0:02:17]}  Rd6 {[%clk 0:02:11]} 27. Nd4 {[%clk 0:02:12]}  Red8 {[%clk 0:02:08]} 28. g5 {[%clk 0:02:09]}  h5 {[%clk 0:02:01]} 29. Rad1 {[%clk 0:01:55]}  g6 {[%clk 0:02:00]} 30. e5 {[%clk 0:01:43]}  R6d7 {[%clk 0:01:58]} 31. Nxc6 {[%clk 0:01:35]}  Nxc6 {[%clk 0:01:53]} 32. Rxd7 {[%clk 0:01:29]}  Rxd7 {[%clk 0:01:54]} 33. Rd1 {[%clk 0:01:29]}  Rxd1 {[%clk 0:01:53]} 34. Bxd1 {[%clk 0:01:30]}  Ne7 {[%clk 0:01:52]} 35. Bf3 {[%clk 0:01:16]}  Nf5+ {[%clk 0:01:51]} 36. Kf2 {[%clk 0:01:15]}  Nxh4 {[%clk 0:01:42]} 37. Bb7 {[%clk 0:01:15]}  Nf5 {[%clk 0:01:39]} 38. Bxa6 {[%clk 0:01:15]}  c6 {[%clk 0:01:38]} 39. c4 {[%clk 0:01:08]}  Nd4 {[%clk 0:01:06]} 40. cxb5 {[%clk 0:00:56]}  cxb5 {[%clk 0:01:06]} 41. Kg3 {[%clk 0:00:21]}  Kf8 {[%clk 0:01:02]} 42. Kf2 {[%clk 0:00:20]}  Ke7 {[%clk 0:01:02]} 43. Ke3 {[%clk 0:00:18]}  Nc2+ {[%clk 0:01:01]} 44. Kd3 {[%clk 0:00:16]}  Nxa3 {[%clk 0:01:02]} 45. Kc3 {[%clk 0:00:16]}  Kd7 {[%clk 0:00:59]} 46. Kb3 {[%clk 0:00:16]}  Kc6 {[%clk 0:00:56]} 47. Kxa3 {[%clk 0:00:16]}  h4 {[%clk 0:00:55]} 0-1


[Site "https://www.chess.com"]